[Event "Titled Tuesday Blitz May 4 2021"]
[White "Volkov, Maksim"]
[Black "Simonovic, Miroslav"]
[WhiteFideId "54123070"]
[BlackFideId "919152"]
[WhiteElo "2113"]
[BlackElo "2043"]
[Result "0-1"]
[Round "04"]
[TimeControl "180+1"]
[Date "2021.05.04"]
[WhiteClock "0:00:11"]
[BlackClock "0:00:07"]

1. d4 {[%clk 0:03:00]}  Nf6 {[%clk 0:02:58]} 2. c4 {[%clk 0:03:00]}  c5 {[%clk 0:02:58]} 3. d5 {[%clk 0:02:58]}  b5 {[%clk 0:02:58]} 4. cxb5 {[%clk 0:02:57]}  a6 {[%clk 0:02:58]} 5. bxa6 {[%clk 0:02:52]}  Bxa6 {[%clk 0:02:59]} 6. e3 {[%clk 0:02:48]}  Bxf1 {[%clk 0:02:57]} 7. Kxf1 {[%clk 0:02:48]}  d6 {[%clk 0:02:58]} 8. Nc3 {[%clk 0:02:47]}  Nbd7 {[%clk 0:02:59]} 9. Nge2 {[%clk 0:02:47]}  g6 {[%clk 0:02:59]} 10. f3 {[%clk 0:02:45]}  Bg7 {[%clk 0:03:00]} 11. Kf2 {[%clk 0:02:43]}  O-O {[%clk 0:03:01]} 12. b3 {[%clk 0:02:40]}  Qa5 {[%clk 0:02:59]} 13. Bb2 {[%clk 0:02:39]}  Rfb8 {[%clk 0:02:58]} 14. Qc2 {[%clk 0:02:34]}  Nb6 {[%clk 0:02:41]} 15. Rhd1 {[%clk 0:02:17]}  Nfd7 {[%clk 0:02:28]} 16. e4 {[%clk 0:02:08]}  c4 {[%clk 0:02:14]} 17. Kf1 {[%clk 0:02:06]}  Qc5 {[%clk 0:02:00]} 18. Rac1 {[%clk 0:01:47]}  Ne5 {[%clk 0:01:48]} 19. h3 {[%clk 0:01:35]}  Nd3 {[%clk 0:01:47]} 20. Rxd3 {[%clk 0:01:35]}  cxd3 {[%clk 0:01:47]} 21. Qxd3 {[%clk 0:01:35]}  Rc8 {[%clk 0:01:27]} 22. g4 {[%clk 0:01:15]}  Qa5 {[%clk 0:00:45]} 23. Kg2 {[%clk 0:01:05]}  Rc7 {[%clk 0:00:45]} 24. h4 {[%clk 0:01:01]}  Rac8 {[%clk 0:00:45]} 25. f4 {[%clk 0:00:52]}  Nd7 {[%clk 0:00:44]} 26. Qe3 {[%clk 0:00:49]}  Qa6 {[%clk 0:00:39]} 27. Kf3 {[%clk 0:00:47]}  Nc5 {[%clk 0:00:38]} 28. Rd1 {[%clk 0:00:40]}  Qa5 {[%clk 0:00:27]} 29. h5 {[%clk 0:00:38]}  Nxb3 {[%clk 0:00:23]} 30. axb3 {[%clk 0:00:34]}  Bxc3 {[%clk 0:00:23]} 31. Bxc3 {[%clk 0:00:34]}  Rxc3 {[%clk 0:00:23]} 32. Nxc3 {[%clk 0:00:34]}  Rxc3 {[%clk 0:00:20]} 33. Rd3 {[%clk 0:00:35]}  Rc2 {[%clk 0:00:19]} 34. h6 {[%clk 0:00:29]}  Qa1 {[%clk 0:00:16]} 35. f5 {[%clk 0:00:13]}  Qh1+ {[%clk 0:00:16]} 36. Kf4 {[%clk 0:00:13]}  Qh2+ {[%clk 0:00:14]} 37. Qg3 {[%clk 0:00:12]}  Rf2+ {[%clk 0:00:12]} 38. Kg5 {[%clk 0:00:11]}  f6# {[%clk 0:00:07]} 0-1


[Site "https://www.chess.com"]

[Event "Titled Tuesday Blitz May 4 2021"]
[White "Vovk, Orest"]
[Black "Saraci, Nderim"]
[WhiteFideId "14113490"]
[BlackFideId "6351921"]
[WhiteElo "2203"]
[BlackElo "2486"]
[Result "0-1"]
[Round "04"]
[TimeControl "180+1"]
[Date "2021.05.04"]
[WhiteClock "0:00:09"]
[BlackClock "0:00:10"]

1. h3 {[%clk 0:03:00]}  e5 {[%clk 0:02:56]} 2. Nc3 {[%clk 0:02:59]}  Nf6 {[%clk 0:02:53]} 3. d4 {[%clk 0:02:53]}  exd4 {[%clk 0:02:50]} 4. Qxd4 {[%clk 0:02:54]}  Nc6 {[%clk 0:02:50]} 5. Qa4 {[%clk 0:02:53]}  Bc5 {[%clk 0:02:46]} 6. Bg5 {[%clk 0:02:51]}  h6 {[%clk 0:02:38]} 7. Qh4 {[%clk 0:02:42]}  Be7 {[%clk 0:02:23]} 8. Bxf6 {[%clk 0:02:32]}  Bxf6 {[%clk 0:02:22]} 9. Qe4+ {[%clk 0:02:32]}  Qe7 {[%clk 0:02:10]} 10. Qxe7+ {[%clk 0:02:30]}  Nxe7 {[%clk 0:02:10]} 11. Kd2 {[%clk 0:02:25]}  d5 {[%clk 0:02:07]} 12. e3 {[%clk 0:02:23]}  Be6 {[%clk 0:02:01]} 13. Nb5 {[%clk 0:02:10]}  O-O-O {[%clk 0:01:44]} 14. Nxa7+ {[%clk 0:02:02]}  Kb8 {[%clk 0:01:43]} 15. Nb5 {[%clk 0:02:03]}  Bxb2 {[%clk 0:01:41]} 16. Rb1 {[%clk 0:02:03]}  Bf6 {[%clk 0:01:41]} 17. Nf3 {[%clk 0:02:00]}  d4 {[%clk 0:01:27]} 18. exd4 {[%clk 0:01:50]}  Bxa2 {[%clk 0:01:25]} 19. Rb2 {[%clk 0:01:35]}  Bd5 {[%clk 0:01:23]} 20. c3 {[%clk 0:01:21]}  c5 {[%clk 0:01:14]} 21. Be2 {[%clk 0:01:05]}  Nc6 {[%clk 0:01:10]} 22. Rhb1 {[%clk 0:01:00]}  cxd4 {[%clk 0:01:00]} 23. Nbxd4 {[%clk 0:00:57]}  Nxd4 {[%clk 0:00:58]} 24. cxd4 {[%clk 0:00:52]}  Be4 {[%clk 0:00:55]} 25. Ra1 {[%clk 0:00:38]}  Bxf3 {[%clk 0:00:49]} 26. Bxf3 {[%clk 0:00:37]}  Rxd4+ {[%clk 0:00:49]} 27. Ke2 {[%clk 0:00:31]}  Rd7 {[%clk 0:00:48]} 28. Rab1 {[%clk 0:00:26]}  Bxb2 {[%clk 0:00:45]} 29. Rxb2 {[%clk 0:00:27]}  Re8+ {[%clk 0:00:41]} 30. Kf1 {[%clk 0:00:27]}  f5 {[%clk 0:00:41]} 31. g4 {[%clk 0:00:26]}  Rf8 {[%clk 0:00:39]} 32. Kg2 {[%clk 0:00:26]}  fxg4 {[%clk 0:00:33]} 33. hxg4 {[%clk 0:00:25]}  Rf4 {[%clk 0:00:32]} 34. Kg3 {[%clk 0:00:19]}  g5 {[%clk 0:00:31]} 35. Be2 {[%clk 0:00:17]}  Kc7 {[%clk 0:00:22]} 36. Rc2+ {[%clk 0:00:16]}  Kd8 {[%clk 0:00:22]} 37. f3 {[%clk 0:00:15]}  Rd6 {[%clk 0:00:19]} 38. Rb2 {[%clk 0:00:13]}  b6 {[%clk 0:00:19]} 39. Ba6 {[%clk 0:00:13]}  Ra4 {[%clk 0:00:18]} 40. Bb7 {[%clk 0:00:13]}  Ra5 {[%clk 0:00:18]} 41. Be4 {[%clk 0:00:12]}  b5 {[%clk 0:00:18]} 42. Rc2 {[%clk 0:00:12]}  b4 {[%clk 0:00:18]} 43. Bf5 {[%clk 0:00:12]}  b3 {[%clk 0:00:18]} 44. Rc8+ {[%clk 0:00:12]}  Ke7 {[%clk 0:00:17]} 45. Rc7+ {[%clk 0:00:13]}  Kf6 {[%clk 0:00:18]} 46. Rb7 {[%clk 0:00:12]}  Ra3 {[%clk 0:00:14]} 47. Bh7 {[%clk 0:00:11]}  Ke5 {[%clk 0:00:14]} 48. Bg8 {[%clk 0:00:12]}  Rd3 {[%clk 0:00:13]} 49. Bh7 {[%clk 0:00:10]}  Rc3 {[%clk 0:00:13]} 50. Be4 {[%clk 0:00:10]}  Ra1 {[%clk 0:00:13]} 51. Re7+ {[%clk 0:00:09]}  Kd4 {[%clk 0:00:12]} 52. Rb7 {[%clk 0:00:10]}  Re1 {[%clk 0:00:11]} 53. Kf2 {[%clk 0:00:10]}  Rxe4 {[%clk 0:00:11]} 54. Rb4+ {[%clk 0:00:09]}  Rc4 {[%clk 0:00:10]} 55. Rxb3 {[%clk 0:00:09]}  Rc2+ {[%clk 0:00:09]} 56. Kg3 {[%clk 0:00:09]}  Ree2 {[%clk 0:00:10]} 57. Rb4+ {[%clk 0:00:09]}  Kc3 {[%clk 0:00:10]} 0-1


[Site "https://www.chess.com"]

[Event "Titled Tuesday Blitz May 4 2021"]
[White "Vypkhaniuk, Ihor"]
[Black "Shuvalov, Evgenij"]
[WhiteFideId "14112256"]
[BlackFideId "4187237"]
[WhiteElo "2368"]
[BlackElo "2163"]
[Result "1-0"]
[Round "04"]
[TimeControl "180+1"]
[Date "2021.05.04"]
[WhiteClock "0:00:52"]
[BlackClock "0:00:08"]

1. d4 {[%clk 0:03:00]}  Nf6 {[%clk 0:02:54]} 2. c4 {[%clk 0:02:59]}  g6 {[%clk 0:02:53]} 3. Nc3 {[%clk 0:02:58]}  d5 {[%clk 0:02:52]} 4. e3 {[%clk 0:02:52]}  Bg7 {[%clk 0:02:51]} 5. Qb3 {[%clk 0:02:52]}  c5 {[%clk 0:02:34]} 6. dxc5 {[%clk 0:02:46]}  dxc4 {[%clk 0:01:50]} 7. Bxc4 {[%clk 0:02:45]}  O-O {[%clk 0:01:49]} 8. Nf3 {[%clk 0:02:42]}  Qa5 {[%clk 0:01:48]} 9. Qb5 {[%clk 0:02:38]}  Qc7 {[%clk 0:01:45]} 10. O-O {[%clk 0:02:32]}  Bd7 {[%clk 0:01:39]} 11. Qb4 {[%clk 0:02:25]}  Na6 {[%clk 0:01:19]} 12. Bxa6 {[%clk 0:02:22]}  bxa6 {[%clk 0:01:20]} 13. Bd2 {[%clk 0:02:05]}  Rfc8 {[%clk 0:01:16]} 14. Na4 {[%clk 0:01:57]}  Rab8 {[%clk 0:01:11]} 15. Qa3 {[%clk 0:01:57]}  Ne4 {[%clk 0:01:01]} 16. Rac1 {[%clk 0:01:44]}  Nxd2 {[%clk 0:00:47]} 17. Nxd2 {[%clk 0:01:45]}  Bxa4 {[%clk 0:00:44]} 18. Qxa4 {[%clk 0:01:46]}  Rxb2 {[%clk 0:00:42]} 19. Nb3 {[%clk 0:01:42]}  Qc6 {[%clk 0:00:27]} 20. Qa3 {[%clk 0:01:37]}  Qb5 {[%clk 0:00:21]} 21. Nd4 {[%clk 0:01:22]}  Qb4 {[%clk 0:00:18]} 22. Qxa6 {[%clk 0:01:18]}  Rc7 {[%clk 0:00:15]} 23. Nb3 {[%clk 0:01:13]}  Bf6 {[%clk 0:00:13]} 24. c6 {[%clk 0:01:07]}  h5 {[%clk 0:00:12]} 25. h3 {[%clk 0:01:05]}  g5 {[%clk 0:00:11]} 26. Qd3 {[%clk 0:00:57]}  g4 {[%clk 0:00:11]} 27. Qd8+ {[%clk 0:00:55]}  Kg7 {[%clk 0:00:11]} 28. Qxc7 {[%clk 0:00:55]}  gxh3 {[%clk 0:00:10]} 29. Qg3+ {[%clk 0:00:56]}  Kh7 {[%clk 0:00:10]} 30. Qxh3 {[%clk 0:00:56]}  Rxa2 {[%clk 0:00:10]} 31. Qxh5+ {[%clk 0:00:55]}  Kg7 {[%clk 0:00:10]} 32. c7 {[%clk 0:00:53]}  Qxb3 {[%clk 0:00:08]} 33. c8=Q {[%clk 0:00:52]} 1-0


[Site "https://www.chess.com"]

[Event "Titled Tuesday Blitz May 4 2021"]
[White "Winslow, Elliott"]
[Black "Van der Velden, Bram"]
[WhiteFideId "2002523"]
[BlackFideId "1015753"]
[WhiteElo "2240"]
[BlackElo "2155"]
[Result "0-1"]
[Round "04"]
[TimeControl "180+1"]
[Date "2021.05.04"]
[WhiteClock "0:00:01"]
[BlackClock "0:00:01"]

1. e4 {[%clk 0:02:45]}  c5 {[%clk 0:02:59]} 2. Nf3 {[%clk 0:02:45]}  Nc6 {[%clk 0:02:58]} 3. d4 {[%clk 0:02:45]}  cxd4 {[%clk 0:02:56]} 4. Nxd4 {[%clk 0:02:46]}  Qc7 {[%clk 0:02:55]} 5. Nc3 {[%clk 0:02:44]}  e6 {[%clk 0:02:55]} 6. Be3 {[%clk 0:02:39]}  a6 {[%clk 0:02:53]} 7. Qf3 {[%clk 0:02:37]}  Nf6 {[%clk 0:02:52]} 8. O-O-O {[%clk 0:02:21]}  b5 {[%clk 0:02:35]} 9. Nxc6 {[%clk 0:02:17]}  dxc6 {[%clk 0:02:34]} 10. e5 {[%clk 0:02:06]}  Nd5 {[%clk 0:02:32]} 11. Nxd5 {[%clk 0:01:51]}  cxd5 {[%clk 0:02:31]} 12. Qg3 {[%clk 0:01:44]}  Bb7 {[%clk 0:02:17]} 13. Bd4 {[%clk 0:01:42]}  g6 {[%clk 0:02:08]} 14. Kb1 {[%clk 0:01:39]}  Rc8 {[%clk 0:01:56]} 15. Bd3 {[%clk 0:01:37]}  Be7 {[%clk 0:01:43]} 16. h4 {[%clk 0:01:35]}  h5 {[%clk 0:01:42]} 17. Bxg6 {[%clk 0:01:22]}  fxg6 {[%clk 0:01:41]} 18. Qxg6+ {[%clk 0:01:22]}  Kd7 {[%clk 0:01:41]} 19. g3 {[%clk 0:01:17]}  Rhg8 {[%clk 0:01:26]} 20. Qd3 {[%clk 0:01:16]}  Qc4 {[%clk 0:01:19]} 21. Qd2 {[%clk 0:01:15]}  Rcf8 {[%clk 0:00:56]} 22. c3 {[%clk 0:01:05]}  a5 {[%clk 0:00:53]} 23. Rhe1 {[%clk 0:00:51]}  b4 {[%clk 0:00:49]} 24. b3 {[%clk 0:00:49]}  Qa6 {[%clk 0:00:24]} 25. c4 {[%clk 0:00:38]}  a4 {[%clk 0:00:20]} 26. Re3 {[%clk 0:00:24]}  axb3 {[%clk 0:00:18]} 27. Rxb3 {[%clk 0:00:22]}  Ke8 {[%clk 0:00:17]} 28. c5 {[%clk 0:00:20]}  Bc6 {[%clk 0:00:16]} 29. Qxb4 {[%clk 0:00:19]}  Rf7 {[%clk 0:00:14]} 30. Qb8+ {[%clk 0:00:17]}  Bd8 {[%clk 0:00:14]} 31. Rb6 {[%clk 0:00:14]}  Qa4 {[%clk 0:00:14]} 32. Rc1 {[%clk 0:00:12]}  Qxd4 {[%clk 0:00:12]} 33. Rxc6 {[%clk 0:00:12]}  Re7 {[%clk 0:00:06]} 34. Rc8 {[%clk 0:00:10]}  Rd7 {[%clk 0:00:07]} 35. c6 {[%clk 0:00:10]}  Qd3+ {[%clk 0:00:02]} 36. Rc2 {[%clk 0:00:07]}  Qd1+ {[%clk 0:00:02]} 37. Kb2 {[%clk 0:00:07]}  Qd4+ {[%clk 0:00:02]} 38. Kc1 {[%clk 0:00:04]}  Qa1+ {[%clk 0:00:02]} 39. Kd2 {[%clk 0:00:04]}  Qd4+ {[%clk 0:00:02]} 40. Kc1 {[%clk 0:00:05]}  Qa1+ {[%clk 0:00:02]} 41. Kd2 {[%clk 0:00:04]}  Qd4+ {[%clk 0:00:01]} 42. Ke2 {[%clk 0:00:03]}  Qe4+ {[%clk 0:00:02]} 43. Kd1 {[%clk 0:00:02]}  Qd3+ {[%clk 0:00:02]} 44. Rd2 {[%clk 0:00:02]}  Qf1+ {[%clk 0:00:01]} 45. Kc2 {[%clk 0:00:01]}  Qc4+ {[%clk 0:00:01]} 0-1


[Site "https://www.chess.com"]

[Event "Titled Tuesday Blitz May 4 2021"]
[White "Yang, Kaiqi"]
[Black "elohunter1999"]
[WhiteFideId "8604398"]
[WhiteElo "2373"]
[BlackElo "2491"]
[Result "1-0"]
[Round "04"]
[TimeControl "180+1"]
[Date "2021.05.04"]
[WhiteClock "0:00:12"]
[BlackClock "0:00:05"]

1. e4 {[%clk 0:03:00]}  d6 {[%clk 0:02:57]} 2. d4 {[%clk 0:03:00]}  Nf6 {[%clk 0:02:58]} 3. Nc3 {[%clk 0:03:00]}  e5 {[%clk 0:02:58]} 4. Nf3 {[%clk 0:03:00]}  Nbd7 {[%clk 0:02:57]} 5. Bc4 {[%clk 0:02:58]}  Be7 {[%clk 0:02:57]} 6. O-O {[%clk 0:02:57]}  exd4 {[%clk 0:02:56]} 7. Nxd4 {[%clk 0:02:57]}  Nb6 {[%clk 0:02:56]} 8. Be2 {[%clk 0:02:57]}  O-O {[%clk 0:02:49]} 9. a4 {[%clk 0:02:51]}  d5 {[%clk 0:02:27]} 10. a5 {[%clk 0:02:47]}  c5 {[%clk 0:02:08]} 11. Ndb5 {[%clk 0:02:05]}  d4 {[%clk 0:01:49]} 12. axb6 {[%clk 0:02:02]}  dxc3 {[%clk 0:01:41]} 13. bxa7 {[%clk 0:01:50]}  Nxe4 {[%clk 0:01:37]} 14. Qxd8 {[%clk 0:01:39]}  Bxd8 {[%clk 0:01:36]} 15. bxc3 {[%clk 0:01:37]}  Bb6 {[%clk 0:01:30]} 16. Bf3 {[%clk 0:01:03]}  Bd7 {[%clk 0:01:27]} 17. c4 {[%clk 0:01:00]}  Bxb5 {[%clk 0:01:25]} 18. cxb5 {[%clk 0:00:59]}  Nd6 {[%clk 0:01:25]} 19. Bf4 {[%clk 0:00:51]}  Rfd8 {[%clk 0:01:02]} 20. Rfd1 {[%clk 0:00:35]}  Nxb5 {[%clk 0:00:14]} 21. Rdb1 {[%clk 0:00:33]}  Rxa7 {[%clk 0:00:01]} 22. Rxa7 {[%clk 0:00:31]}  Bxa7 {[%clk 0:00:02]} 23. Rxb5 {[%clk 0:00:30]}  b6 {[%clk 0:00:02]} 24. h4 {[%clk 0:00:28]}  h6 {[%clk 0:00:02]} 25. h5 {[%clk 0:00:28]}  Bb8 {[%clk 0:00:02]} 26. Bxb8 {[%clk 0:00:26]}  Rxb8 {[%clk 0:00:03]} 27. c4 {[%clk 0:00:27]}  Kf8 {[%clk 0:00:03]} 28. Bd5 {[%clk 0:00:26]}  Ke7 {[%clk 0:00:04]} 29. Rb3 {[%clk 0:00:26]}  f6 {[%clk 0:00:04]} 30. g4 {[%clk 0:00:25]}  Kd6 {[%clk 0:00:04]} 31. Rb5 {[%clk 0:00:25]}  Ke5 {[%clk 0:00:04]} 32. Kg2 {[%clk 0:00:24]}  Kf4 {[%clk 0:00:04]} 33. Be6 {[%clk 0:00:20]}  Ke5 {[%clk 0:00:04]} 34. Bf5 {[%clk 0:00:20]}  Kd4 {[%clk 0:00:04]} 35. Be6 {[%clk 0:00:17]}  Ke5 {[%clk 0:00:04]} 36. Bf7 {[%clk 0:00:17]}  Kf4 {[%clk 0:00:03]} 37. Kh3 {[%clk 0:00:14]}  Kf3 {[%clk 0:00:03]} 38. Rb2 {[%clk 0:00:13]}  Rd8 {[%clk 0:00:02]} 39. Bd5+ {[%clk 0:00:13]}  Kf4 {[%clk 0:00:01]} 40. Rxb6 {[%clk 0:00:13]}  Ke5 {[%clk 0:00:02]} 41. Rb2 {[%clk 0:00:13]}  Kd4 {[%clk 0:00:02]} 42. Rd2+ {[%clk 0:00:13]}  Kc3 {[%clk 0:00:02]} 43. Re2 {[%clk 0:00:13]}  Rb8 {[%clk 0:00:02]} 44. Re7 {[%clk 0:00:13]}  Rb3 {[%clk 0:00:01]} 45. Rxg7 {[%clk 0:00:12]}  Kd2+ {[%clk 0:00:02]} 46. Kg2 {[%clk 0:00:12]}  Ke2 {[%clk 0:00:02]} 47. Re7+ {[%clk 0:00:12]}  Kd1 {[%clk 0:00:02]} 48. Re6 {[%clk 0:00:13]}  f5 {[%clk 0:00:03]} 49. gxf5 {[%clk 0:00:13]}  Kd2 {[%clk 0:00:03]} 50. f6 {[%clk 0:00:13]}  Rb8 {[%clk 0:00:04]} 51. f7 {[%clk 0:00:13]}  Rf8 {[%clk 0:00:05]} 52. Re8 {[%clk 0:00:13]}  Rxf7 {[%clk 0:00:05]} 53. Bxf7 {[%clk 0:00:12]} 1-0


[Site "https://www.chess.com"]

[Event "Titled Tuesday Blitz May 4 2021"]
[White "Yilmaz, Mustafa"]
[Black "Weetik, Vjacheslav"]
[WhiteFideId "6302718"]
[BlackFideId "4153472"]
[WhiteElo "2518"]
[BlackElo "2469"]
[Result "1-0"]
[Round "04"]
[TimeControl "180+1"]
[Date "2021.05.04"]
[WhiteClock "0:00:05"]
[BlackClock "0:00:04"]

1. d4 {[%clk 0:03:00]}  d5 {[%clk 0:02:45]} 2. c4 {[%clk 0:03:00]}  e6 {[%clk 0:02:44]} 3. Nc3 {[%clk 0:03:00]}  c6 {[%clk 0:02:45]} 4. Nf3 {[%clk 0:02:59]}  dxc4 {[%clk 0:02:45]} 5. e3 {[%clk 0:02:57]}  b5 {[%clk 0:02:45]} 6. a4 {[%clk 0:02:58]}  Bb4 {[%clk 0:02:44]} 7. Bd2 {[%clk 0:02:58]}  a5 {[%clk 0:02:44]} 8. axb5 {[%clk 0:02:58]}  Bxc3 {[%clk 0:02:44]} 9. Bxc3 {[%clk 0:02:59]}  cxb5 {[%clk 0:02:45]} 10. b3 {[%clk 0:03:00]}  Bb7 {[%clk 0:02:46]} 11. bxc4 {[%clk 0:03:00]}  b4 {[%clk 0:02:46]} 12. Bb2 {[%clk 0:03:01]}  Nf6 {[%clk 0:02:47]} 13. Bd3 {[%clk 0:03:01]}  Nbd7 {[%clk 0:02:47]} 14. O-O {[%clk 0:03:01]}  O-O {[%clk 0:02:47]} 15. Re1 {[%clk 0:02:57]}  Qc7 {[%clk 0:02:40]} 16. e4 {[%clk 0:02:46]}  e5 {[%clk 0:02:39]} 17. d5 {[%clk 0:02:34]}  Rfe8 {[%clk 0:02:36]} 18. Bc2 {[%clk 0:02:33]}  Nc5 {[%clk 0:01:53]} 19. d6 {[%clk 0:02:32]}  Qb6 {[%clk 0:01:53]} 20. Bxe5 {[%clk 0:02:08]}  Ncxe4 {[%clk 0:01:47]} 21. Qd4 {[%clk 0:01:16]}  Qxd4 {[%clk 0:01:43]} 22. Nxd4 {[%clk 0:01:17]}  Rxe5 {[%clk 0:01:42]} 23. f3 {[%clk 0:01:13]}  Rd8 {[%clk 0:01:30]} 24. Bxe4 {[%clk 0:01:04]}  Bxe4 {[%clk 0:01:24]} 25. fxe4 {[%clk 0:00:56]}  Rxd6 {[%clk 0:01:24]} 26. Nf3 {[%clk 0:00:52]}  Rxe4 {[%clk 0:01:19]} 27. Rxa5 {[%clk 0:00:52]}  Rxe1+ {[%clk 0:01:10]} 28. Nxe1 {[%clk 0:00:53]}  h6 {[%clk 0:00:59]} 29. Rb5 {[%clk 0:00:52]}  Rd1 {[%clk 0:00:59]} 30. Kf1 {[%clk 0:00:50]}  Rb1 {[%clk 0:00:57]} 31. c5 {[%clk 0:00:48]}  b3 {[%clk 0:00:52]} 32. c6 {[%clk 0:00:47]}  Rc1 {[%clk 0:00:50]} 33. Rxb3 {[%clk 0:00:42]}  Rxc6 {[%clk 0:00:50]} 34. Rb8+ {[%clk 0:00:35]}  Kh7 {[%clk 0:00:50]} 35. Rb7 {[%clk 0:00:35]}  Kg6 {[%clk 0:00:50]} 36. Nd3 {[%clk 0:00:34]}  Rc2 {[%clk 0:00:17]} 37. Ne5+ {[%clk 0:00:31]}  Kf5 {[%clk 0:00:18]} 38. Nxf7 {[%clk 0:00:29]}  Ne4 {[%clk 0:00:18]} 39. Nh8 {[%clk 0:00:20]}  Rf2+ {[%clk 0:00:13]} 40. Kg1 {[%clk 0:00:20]}  Rc2 {[%clk 0:00:13]} 41. Rf7+ {[%clk 0:00:19]}  Ke5 {[%clk 0:00:12]} 42. Rf1 {[%clk 0:00:18]}  Rc6 {[%clk 0:00:09]} 43. Nf7+ {[%clk 0:00:18]}  Kd4 {[%clk 0:00:09]} 44. Rd1+ {[%clk 0:00:17]}  Ke3 {[%clk 0:00:09]} 45. Ne5 {[%clk 0:00:17]}  Rc2 {[%clk 0:00:09]} 46. h3 {[%clk 0:00:08]}  Nc3 {[%clk 0:00:08]} 47. Rf1 {[%clk 0:00:07]}  Ne2+ {[%clk 0:00:08]} 48. Kh2 {[%clk 0:00:08]}  Nf4 {[%clk 0:00:05]} 49. Ng4+ {[%clk 0:00:05]}  Ke4 {[%clk 0:00:06]} 50. Nf2+ {[%clk 0:00:05]}  Ke5 {[%clk 0:00:06]} 51. Re1+ {[%clk 0:00:05]}  Kf5 {[%clk 0:00:06]} 52. Kg1 {[%clk 0:00:05]}  Ne2+ {[%clk 0:00:06]} 53. Kh2 {[%clk 0:00:05]}  Nf4 {[%clk 0:00:06]} 54. Rf1 {[%clk 0:00:06]}  Ke5 {[%clk 0:00:04]} 55. Ng4+ {[%clk 0:00:05]}  Ke4 {[%clk 0:00:04]} 56. Re1+ {[%clk 0:00:05]}  Kf5 {[%clk 0:00:04]} 57. Ne3+ {[%clk 0:00:05]} 1-0


[Site "https://www.chess.com"]

[Event "Titled Tuesday Blitz May 4 2021"]
[White "Zaichenko, Daria"]
[Black "Ravi, Thandalam Shanmugam"]
[WhiteFideId "4197453"]
[BlackFideId "5000238"]
[WhiteElo "2039"]
[BlackElo "2215"]
[Result "1-0"]
[Round "04"]
[TimeControl "180+1"]
[Date "2021.05.04"]
[WhiteClock "0:01:14"]
[BlackClock "0:00:15"]

1. e4 {[%clk 0:03:00]}  e5 {[%clk 0:02:59]} 2. Nf3 {[%clk 0:03:00]}  Nc6 {[%clk 0:02:58]} 3. Bc4 {[%clk 0:02:58]}  Bc5 {[%clk 0:02:58]} 4. c3 {[%clk 0:02:55]}  Nf6 {[%clk 0:02:57]} 5. d3 {[%clk 0:02:54]}  d6 {[%clk 0:02:56]} 6. b4 {[%clk 0:02:55]}  Bb6 {[%clk 0:02:55]} 7. a4 {[%clk 0:02:55]}  a6 {[%clk 0:02:53]} 8. Bb3 {[%clk 0:02:55]}  Be6 {[%clk 0:02:42]} 9. Bc2 {[%clk 0:02:54]}  d5 {[%clk 0:02:40]} 10. Qe2 {[%clk 0:02:52]}  d4 {[%clk 0:02:39]} 11. Bb2 {[%clk 0:02:48]}  dxc3 {[%clk 0:02:36]} 12. Bxc3 {[%clk 0:02:48]}  Nd4 {[%clk 0:02:35]} 13. Nxd4 {[%clk 0:02:43]}  Bxd4 {[%clk 0:02:35]} 14. O-O {[%clk 0:02:42]}  O-O {[%clk 0:02:12]} 15. Ra3 {[%clk 0:02:40]}  a5 {[%clk 0:02:07]} 16. b5 {[%clk 0:02:36]}  Bg4 {[%clk 0:02:02]} 17. Qd2 {[%clk 0:02:33]}  Nh5 {[%clk 0:01:57]} 18. h3 {[%clk 0:02:31]}  Be6 {[%clk 0:01:52]} 19. Bxd4 {[%clk 0:02:28]}  Qxd4 {[%clk 0:01:45]} 20. Nc3 {[%clk 0:02:27]}  Qd6 {[%clk 0:01:35]} 21. Raa1 {[%clk 0:02:21]}  Nf4 {[%clk 0:01:16]} 22. Ne2 {[%clk 0:02:21]}  f5 {[%clk 0:01:12]} 23. Nxf4 {[%clk 0:02:16]}  exf4 {[%clk 0:01:12]} 24. Rae1 {[%clk 0:02:12]}  fxe4 {[%clk 0:01:03]} 25. Rxe4 {[%clk 0:02:10]}  Bd5 {[%clk 0:01:01]} 26. Rd4 {[%clk 0:02:04]}  Qe5 {[%clk 0:00:58]} 27. Qc3 {[%clk 0:02:00]}  Rad8 {[%clk 0:00:34]} 28. Qc5 {[%clk 0:01:55]}  b6 {[%clk 0:00:32]} 29. Qc3 {[%clk 0:01:54]}  Bf7 {[%clk 0:00:28]} 30. Rc4 {[%clk 0:01:48]}  Qxc3 {[%clk 0:00:27]} 31. Rxc3 {[%clk 0:01:48]}  Rd7 {[%clk 0:00:27]} 32. Bb3 {[%clk 0:01:41]}  Bxb3 {[%clk 0:00:25]} 33. Rxb3 {[%clk 0:01:41]}  Rfd8 {[%clk 0:00:26]} 34. Rc1 {[%clk 0:01:37]}  Rxd3 {[%clk 0:00:25]} 35. Rxd3 {[%clk 0:01:37]}  Rxd3 {[%clk 0:00:26]} 36. Rxc7 {[%clk 0:01:37]}  Rd4 {[%clk 0:00:26]} 37. Rc6 {[%clk 0:01:33]}  Rxa4 {[%clk 0:00:25]} 38. Rxb6 {[%clk 0:01:33]}  Rb4 {[%clk 0:00:25]} 39. Rb8+ {[%clk 0:01:31]}  Kf7 {[%clk 0:00:25]} 40. b6 {[%clk 0:01:32]}  a4 {[%clk 0:00:24]} 41. b7 {[%clk 0:01:31]}  a3 {[%clk 0:00:24]} 42. Ra8 {[%clk 0:01:29]}  Rxb7 {[%clk 0:00:24]} 43. Rxa3 {[%clk 0:01:29]}  g5 {[%clk 0:00:24]} 44. f3 {[%clk 0:01:27]}  Kg6 {[%clk 0:00:24]} 45. Ra5 {[%clk 0:01:26]}  h6 {[%clk 0:00:23]} 46. Kh2 {[%clk 0:01:25]}  Kh5 {[%clk 0:00:23]} 47. Ra6 {[%clk 0:01:21]}  Rb1 {[%clk 0:00:23]} 48. Rc6 {[%clk 0:01:20]}  Rc1 {[%clk 0:00:24]} 49. Rxc1 {[%clk 0:01:19]}  Kh4 {[%clk 0:00:23]} 50. Rc4 {[%clk 0:01:15]}  h5 {[%clk 0:00:15]} 51. g3# {[%clk 0:01:14]} 1-0


[Site "https://www.chess.com"]